fUST/lending_fUST_20250719
["ID","MTS","AMOUNT","RATE_DAILY","PERIOD"]
[373141460,1752881455704,-151.0,0.00019,2]
[373141461,1752881455712,-438.949853,0.00019,2]
[373141462,1752881455721,-438.949853,0.00019,2]
[373141463,1752881455730,-151.0,0.00019,2]
[373141464,1752881455739,-151.0,0.00019,2]
[373141465,1752881455748,-229.090139,0.00019,2]
[373141466,1752881455757,-151.0,0.00019,2]
[373141467,1752881455766,-151.0,0.00019,2]
[373141468,1752881455775,-151.0,0.00019,2]
[373141469,1752881455785,-318.834368,0.00019,2]
[373141470,1752881455794,-318.834362,0.00019,2]
[373141471,1752881455803,-1500.0,0.00019008,2]
[373141472,1752881455813,-331.11,0.0001904,2]
[373141473,1752881455824,-568.55500611,0.00019087,5]
[373141474,1752881455834,-302.75781494,0.00019089,2]
[373141475,1752881455844,-151.0,0.000191,2]
[373141476,1752881455854,-1929.32133264,0.00019107,2]
[373141477,1752881455864,-150.0,0.00019154,2]
[373141478,1752881455875,-538.0,0.00019178,2]
[373141479,1752881455884,-500.0,0.00019178,2]
[373141480,1752881455894,-151.0,0.00019178,2]
[373141481,1752881455904,-151.0,0.00019178,2]
[373141482,1752881455915,-151.0,0.00019178,2]
[373141483,1752881455925,-151.0,0.00019178,2]
[373141484,1752881455935,-553.12,0.00019178,2]
[373141485,1752881455945,-460.0,0.00019178,2]
[373141486,1752881455956,-1462.88,0.00019178,2]
[373141487,1752881455966,-460.0,0.00019178,2]
[373141488,1752881455976,-460.0,0.00019178,2]
[373141489,1752881455985,-2605.37,0.00019178,2]
[373141490,1752881455997,-625.28,0.00019178,2]
[373141491,1752881456007,-1638.8,0.00019178,2]
[373141492,1752881456016,-223.87291385,0.00019178,2]
[373141493,1752881456026,-460.0,0.00019178,2]
[373141494,1752881456036,-2619.64,0.00019178,2]
[373141495,1752881456045,-460.0,0.00019178,2]
[373141496,1752881456055,-1379.65,0.00019178,2]
[373141497,1752881456065,-2040.8,0.00019178,2]
[373141498,1752881456075,-762.54,0.00019178,2]
[373141499,1752881456085,-1838.47,0.00019178,2]
[373141500,1752881456095,-779.64,0.00019178,2]
[373141501,1752881456105,-509.77,0.00019178,2]
[373141502,1752881456115,-460.0,0.00019178,2]
[373141503,1752881456125,-728.93,0.00019178,2]
[373141504,1752881456134,-3722.74,0.00019178,2]
[373141505,1752881456144,-1135.32,0.00019178,2]
[373141506,1752881456154,-576.95,0.00019178,2]
[373141507,1752881456164,-460.0,0.00019178,2]
[373141508,1752881456174,-479.43,0.00019178,2]
[373141509,1752881456184,-460.0,0.00019178,2]
[373141510,1752881456193,-460.0,0.00019178,2]
[373141511,1752881456202,-480.07,0.00019178,2]
[373141512,1752881456216,-1372.18,0.00019178,2]
[373141513,1752881456233,-217.3,0.00019178,2]
[373141514,1752881456243,-1510.53,0.00019178,2]
[373141515,1752881456253,-547.73,0.00019178,2]
[373141516,1752881456262,-766.89,0.00019178,2]
[373141517,1752881456272,-4219.87,0.00019178,2]
[373141518,1752881456282,-534.43,0.00019178,2]
[373141519,1752881456292,-460.0,0.00019178,2]
[373141520,1752881456302,-4189.75,0.00019178,2]
[373141521,1752881456311,-266.906186,0.00019178,2]
[373141522,1752881456321,-5000.0,0.00019178,2]
[373141523,1752881456331,-5000.0,0.00019178,2]
[373141524,1752881456340,-2185.48380194,0.00019178,2]
[373141525,1752881456350,-151.0,0.0001918,2]
[373141526,1752881456359,-151.0,0.0001918,2]
[373141527,1752881456369,-264.104677,0.0001918,2]
[373141528,1752881456379,-264.104677,0.0001918,2]
[373141529,1752881456388,-700.0,0.00019186,2]
[373141530,1752881456397,-500.0,0.00019205,2]
[373141531,1752881456407,-500.0,0.00019205,2]
[373141532,1752881456416,-500.0,0.00019205,2]
[373141533,1752881456426,-500.0,0.00019205,2]
[373141534,1752881456435,-158.55172109,0.00019205,2]
[373141535,1752881456445,-500.0,0.00019205,2]
[373141536,1752881456456,-500.0,0.00019222,2]
[373141537,1752881456466,-198.99851668,0.00019222,2]
[373141538,1752881456475,-151.0,0.00019234,2]
[373141539,1752881456485,-267.480686,0.00019234,2]
[373141540,1752881456495,-267.480686,0.00019234,2]
[373141541,1752881456505,-151.0,0.00019234,2]
[373141542,1752881456514,-151.0,0.00019234,2]
[373141543,1752881456524,-150.0,0.00019263,2]
[373141544,1752881456615,-150.0,0.00019263,2]
[373141545,1752881456625,-150.0,0.00019263,2]
[373141546,1752881456635,-2156.0,0.00019272,2]
[373141547,1752881456645,-968.0,0.00019272,2]
[373141548,1752881456655,-411.06,0.00019272,2]
[373141549,1752881456664,-415.75,0.00019272,2]
[373141550,1752881456674,-647.0,0.00019272,2]
[373141551,1752881456684,-642.0,0.000193,2]
[373141552,1752881456694,-151.0,0.00019329,2]
[373141553,1752881456704,-151.0,0.00019329,2]
[373141554,1752881456715,-8157.33118936,0.00019329,2]
[373141555,1752881456724,-500.0,0.00019341,2]
[373141556,1752881456734,-471.88357901,0.00019341,2]
[373141557,1752881456744,-500.0,0.00019341,2]
[373141558,1752881456754,-500.0,0.00019341,2]
[373141559,1752881456763,-525.44090785,0.00019341,2]
[373141560,1752881456773,-158.14770096,0.00019341,2]
[373141561,1752881456783,-500.0,0.00019341,2]
[373141562,1752881456792,-500.0,0.00019341,2]
[373141563,1752881456802,-1929.32133264,0.00019348,2]
[373141564,1752881456811,-500.0,0.00019369,2]
[373141565,1752881456821,-5637.0,0.00019395,2]
[373141566,1752881456830,-1001.57946842,0.00019397,2]
[373141567,1752881456840,-1500.0,0.00019397,2]
[373141568,1752881456849,-501.23694856,0.00019397,2]
[373141569,1752881456859,-5637.0,0.00019416,2]
[373141570,1752881456871,-538.0,0.00019452,2]
[373141571,1752881456881,-500.0,0.00019452,2]
[373141572,1752881456891,-151.0,0.00019452,2]
[373141573,1752881456900,-151.0,0.00019452,2]
[373141574,1752881456910,-151.0,0.00019452,2]
[373141575,1752881456923,-438.949853,0.00019452,2]
[373141576,1752881456932,-438.949853,0.00019452,2]
[373141577,1752881456942,-553.12,0.00019452,2]
[373141578,1752881456952,-460.0,0.00019452,2]
[373141579,1752881456962,-1462.88,0.00019452,2]
[373141580,1752881456971,-460.0,0.00019452,2]
[373141581,1752881456981,-460.0,0.00019452,2]
[373141582,1752881456991,-2605.37,0.00019452,2]
[373141583,1752881457000,-625.28,0.00019452,2]
[373141584,1752881457010,-1638.8,0.00019452,2]
[373141585,1752881457019,-460.0,0.00019452,2]
[373141586,1752881457029,-2619.64,0.00019452,2]
[373141587,1752881457038,-460.0,0.00019452,2]
[373141588,1752881457048,-1379.65,0.00019452,2]
[373141589,1752881457057,-2040.8,0.00019452,2]
[373141590,1752881457067,-762.54,0.00019452,2]
[373141591,1752881457077,-779.64,0.00019452,2]
[373141592,1752881457087,-1838.47,0.00019452,2]
[373141593,1752881457097,-509.77,0.00019452,2]
[373141594,1752881457107,-460.0,0.00019452,2]
[373141595,1752881457118,-728.93,0.00019452,2]
[373141596,1752881457128,-3722.74,0.00019452,2]
[373141597,1752881457137,-1135.32,0.00019452,2]
[373141598,1752881457147,-576.95,0.00019452,2]
[373141599,1752881457156,-460.0,0.00019452,2]
[373141600,1752881457166,-479.43,0.00019452,2]
[373141601,1752881457176,-460.0,0.00019452,2]
[373141602,1752881457186,-494.60337298,0.00019452,2]
[373141603,1752881457196,-480.07,0.00019452,2]
[373141604,1752881457205,-1372.18,0.00019452,2]
[373141605,1752881457215,-1510.53,0.00019452,2]
[373141606,1752881457225,-547.73,0.00019452,2]
[373141607,1752881457235,-766.89,0.00019452,2]
[373141608,1752881457244,-4219.87,0.00019452,2]
[373141609,1752881457254,-534.43,0.00019452,2]
[373141610,1752881457263,-460.0,0.00019452,2]
[373141611,1752881457273,-4189.75,0.00019452,2]
[373141612,1752881457283,-151.0,0.00019453,2]
[373141613,1752881457292,-151.0,0.00019453,2]
[373141614,1752881457301,-151.0,0.00019453,2]
[373141615,1752881457310,-151.0,0.00019453,2]
[373141616,1752881457319,-151.0,0.00019453,2]
[373141617,1752881457328,-182.594941,0.00019453,2]
[373141618,1752881457337,-182.594941,0.00019453,2]
[373141619,1752881457346,-181.557296,0.00019453,2]
[373141620,1752881457355,-279.256129,0.00019455,2]
[373141621,1752881457364,-1000.0,0.00019468,2]
[373141622,1752881457373,-460.0,0.00019476,2]
[373141623,1752881457383,-5637.0,0.00019506,2]
[373141624,1752881457393,-1000.0,0.00019546,2]
[373141625,1752881457402,-1929.32133264,0.0001959,2]
[373141626,1752881457412,-151.0,0.00019603,2]
[373141627,1752881457423,-5637.0,0.00019606,2]
[373141628,1752881457432,-1325.0,0.00019615,2]
[373141629,1752881457442,-500.0,0.00019618,2]
[373141630,1752881457452,-1325.0,0.00019625,2]
[373141631,1752881457462,-2351.0,0.00019628,2]
[373141632,1752881457471,-275.0,0.0001963,2]
[373141633,1752881457480,-587.0,0.0001963,2]
[373141634,1752881457489,-500.40934655,0.00019635,2]
[373141635,1752881457499,-356.9960021,0.00019644,2]
[373141636,1752881457508,-577.0505339,0.00019644,2]
[373141637,1752881457518,-577.0505339,0.00019644,2]
[373141638,1752881457527,-1043.5836196,0.00019644,2]
[373141639,1752881457536,-223.0315306,0.00019676,2]
[373141640,1752881457546,-500.0,0.00019679,2]
[373141641,1752881457555,-500.24441838,0.00019679,2]
[373141642,1752881457565,-500.0,0.00019679,2]
[373141643,1752881457574,-217.17818657,0.00019679,2]
[373141644,1752881457583,-1000.0,0.00019681,2]
[373141645,1752881457593,-317.46934266,0.00019684,2]
[373141646,1752881457603,-500.0,0.00019684,2]
[373141647,1752881457612,-644.0334221,0.00019684,2]
[373141648,1752881457622,-223.48338086,0.00019684,2]
[373141649,1752881457631,-553.09417526,0.00019684,2]
[373141650,1752881457640,-500.0,0.00019684,2]
[373141651,1752881457650,-500.0,0.00019684,2]
[373141652,1752881457659,-32729.1724797,0.0001969,2]
[373141653,1752881457669,-151.0,0.0001969,2]
[373141654,1752881457678,-151.0,0.0001969,2]
[373141655,1752881457687,-264.104677,0.0001969,2]
[373141656,1752881457697,-264.104677,0.0001969,2]
[373141657,1752881457707,-151.0,0.0001969,2]
[373141658,1752881457716,-267.480686,0.0001969,2]
[373141659,1752881457726,-267.480686,0.0001969,2]
[373141660,1752881457735,-151.0,0.0001969,2]
[373141661,1752881457746,-151.0,0.0001969,2]
[373141662,1752881457755,-538.0,0.00019726,2]
[373141663,1752881457765,-500.0,0.00019726,2]
[373141664,1752881457775,-151.0,0.00019726,2]
[373141665,1752881457784,-151.0,0.00019726,2]
[373141666,1752881457794,-151.0,0.00019726,2]
[373141667,1752881457803,-269.884304,0.00019726,2]
[373141668,1752881457813,-151.0,0.00019726,2]
[373141669,1752881457822,-438.949853,0.00019726,2]
[373141670,1752881457832,-438.949853,0.00019726,2]
[373141671,1752881457842,-553.12,0.00019726,2]
[373141672,1752881457851,-460.0,0.00019726,2]
[373141673,1752881457861,-1462.88,0.00019726,2]
[373141674,1752881457871,-460.0,0.00019726,2]
[373141675,1752881457880,-460.0,0.00019726,2]
[373141676,1752881457890,-2605.37,0.00019726,2]
[373141677,1752881457899,-625.28,0.00019726,2]
[373141678,1752881457908,-1638.8,0.00019726,2]
[373141679,1752881457922,-460.0,0.00019726,2]
[373141680,1752881457931,-2619.64,0.00019726,2]
[373141681,1752881457940,-460.0,0.00019726,2]
[373141682,1752881457949,-1379.65,0.00019726,2]
[373141683,1752881457961,-2040.8,0.00019726,2]
[373141684,1752881457970,-762.54,0.00019726,2]
[373141685,1752881457979,-779.64,0.00019726,2]
[373141686,1752881457989,-1838.47,0.00019726,2]
[373141687,1752881457999,-509.77,0.00019726,2]
[373141688,1752881458008,-460.0,0.00019726,2]
[373141689,1752881458018,-728.93,0.00019726,2]
[373141690,1752881458027,-3722.74,0.00019726,2]
[373141691,1752881458037,-1135.32,0.00019726,2]
[373141692,1752881458047,-576.95,0.00019726,2]
[373141693,1752881458056,-460.0,0.00019726,2]
[373141694,1752881458066,-479.43,0.00019726,2]
[373141695,1752881458076,-460.0,0.00019726,2]
[373141696,1752881458085,-480.07,0.00019726,2]
[373141697,1752881458096,-1372.18,0.00019726,2]
[373141698,1752881458106,-1510.53,0.00019726,2]
[373141699,1752881458117,-547.73,0.00019726,2]
[373141700,1752881458127,-766.89,0.00019726,2]
[373141701,1752881458137,-4219.87,0.00019726,2]
[373141702,1752881458148,-534.43,0.00019726,2]
[373141703,1752881458158,-460.0,0.00019726,2]
[373141704,1752881458167,-4189.75,0.00019726,2]
[373141705,1752881458177,-151.0,0.00019727,2]
[373141706,1752881458187,-182.594941,0.00019727,2]
[373141707,1752881458196,-182.594941,0.00019727,2]
[373141708,1752881458206,-181.557296,0.00019727,2]
[373141709,1752881458215,-151.0,0.00019728,2]
[373141710,1752881458225,-1325.0,0.00019731,2]
[373141711,1752881458234,-1000.0,0.00019753,2]
[373141712,1752881458243,-192.77584648,0.00019753,2]
[373141713,1752881458253,-1000.0,0.00019753,2]
[373141714,1752881458262,-1000.0,0.00019753,2]
[373141715,1752881458272,-2000.0,0.00019788,2]
[373141716,1752881458282,-151.0,0.00019788,2]
[373141717,1752881458291,-221.653902,0.00019794,2]
[373141718,1752881458301,-159.7855054,0.00019812,2]
[373141719,1752881458310,-178.0805666,0.00019812,2]
[373141720,1752881458319,-153.0,0.00019812,2]
[373141721,1752881458329,-577.0505339,0.00019812,2]
[373141722,1752881458338,-178.0805666,0.00019812,2]
[373141723,1752881458348,-159.7855054,0.00019812,2]
[373141724,1752881458357,-577.0505339,0.00019812,2]
[373141725,1752881458443,-159.7855054,0.00019812,2]
[373141726,1752881458454,-178.0805666,0.00019812,2]
[373141727,1752881458463,-577.0505339,0.00019812,2]
[373141728,1752881458473,-319.5710108,0.00019812,2]
[373141729,1752881458482,-178.0805666,0.00019812,2]
[373141730,1752881458492,-577.0505339,0.00019812,2]
[373141731,1752881458502,-167.0,0.00019827,2]
[373141732,1752881458511,-1929.32133264,0.00019831,2]
[373141733,1752881458520,-3000.0,0.00019886,2]
[373141734,1752881458529,-151.0,0.00019886,2]
[373141735,1752881458538,-504.32043466,0.00019889,2]
[373141736,1752881458547,-151.0,0.00019904,2]
[373141737,1752881458556,-151.0,0.00019904,2]
[373141738,1752881458565,-5637.0,0.00019944,2]
[373141739,1752881458574,-1325.0,0.00019968,2]
[373141740,1752881458583,-538.0,0.0002,2]
[373141741,1752881458592,-500.0,0.0002,2]
[373141742,1752881458602,-1994.12469639,0.0002,2]
[373141743,1752881458611,-3000.0,0.0002,2]
[373141744,1752881458620,-553.12,0.0002,2]
[373141745,1752881458629,-460.0,0.0002,2]
[373141746,1752881458638,-1462.88,0.0002,2]
[373141747,1752881458647,-460.0,0.0002,2]
[373141748,1752881458656,-460.0,0.0002,2]
[373141749,1752881458666,-2605.37,0.0002,2]
[373141750,1752881458674,-625.28,0.0002,2]
[373141751,1752881458681,-150.007988,0.0002,2]
[373141752,1752881458689,-460.0,0.0002,2]
[373141753,1752881458697,-1638.8,0.0002,2]
[373141754,1752881458704,-2619.64,0.0002,2]
[373141755,1752881458711,-460.0,0.0002,2]
[373141756,1752881458718,-1379.65,0.0002,2]
[373141757,1752881458725,-2040.8,0.0002,2]
[373141758,1752881458732,-762.54,0.0002,2]
[373141759,1752881458741,-779.64,0.0002,2]
[373141760,1752881458748,-1838.47,0.0002,2]
[373141761,1752881458755,-509.77,0.0002,2]
[373141762,1752881458762,-460.0,0.0002,2]
[373141763,1752881458769,-728.93,0.0002,2]
[373141764,1752881458779,-3722.74,0.0002,2]
[373141765,1752881458788,-1135.32,0.0002,2]
[373141766,1752881458798,-576.95,0.0002,2]
[373141767,1752881458807,-221.93,0.0002,2]
[373141768,1752881458818,-479.43,0.0002,2]
[373141769,1752881458827,-460.0,0.0002,2]
[373141770,1752881458836,-480.07,0.0002,2]
[373141771,1752881458845,-1372.18,0.0002,2]
[373141772,1752881458854,-1510.53,0.0002,2]
[373141773,1752881458864,-547.73,0.0002,2]
[373141774,1752881458874,-766.89,0.0002,2]
[373141775,1752881458883,-4219.87,0.0002,2]
[373141776,1752881458892,-534.43,0.0002,2]
[373141777,1752881458901,-333.47389333,0.0002,2]
[373141778,1752881458912,-4189.75,0.0002,2]
[373141779,1752881458924,-151.0,0.00020001,2]
[373141780,1752881458934,-267.480686,0.00020001,2]
[373141781,1752881458943,-267.480686,0.00020001,2]
[373141782,1752881458954,-151.0,0.00020001,2]
[373141783,1752881458962,-3000.0,0.0002001,2]
[373141784,1752881458972,-264.104677,0.0002001,2]
[373141785,1752881458981,-264.104677,0.0002001,2]
[373141786,1752881458992,-5637.0,0.00020012,2]
[373141787,1752881459001,-151.0,0.00020012,2]
[373141788,1752881459010,-1325.0,0.00020014,2]
[373141789,1752881459020,-3000.0,0.0002002,2]
[373141790,1752881459029,-152.067781,0.0002002,2]
[373141791,1752881459038,-5637.0,0.00020021,2]
[373141792,1752881459047,-560.0,0.00020024,2]
[373141793,1752881459054,-3000.0,0.0002003,2]
[373141794,1752881459064,-438.949853,0.0002003,2]
[373141795,1752881459074,-438.949853,0.0002003,2]
[373141796,1752881459083,-1325.0,0.0002004,2]
[373141797,1752881459092,-3000.0,0.0002004,2]
[373141798,1752881459102,-151.0,0.0002004,2]
[373141799,1752881459111,-3000.0,0.0002005,2]
[373141800,1752881459122,-151.0,0.0002005,2]
[373141801,1752881459131,-5637.0,0.00020052,2]
[373141802,1752881459140,-3000.0,0.0002006,2]
[373141803,1752881459150,-3000.0,0.0002007,2]
[373141804,1752881459161,-254.706984,0.0002007,2]
[373141805,1752881459171,-181.557296,0.0002007,2]
[373141806,1752881459180,-181.557296,0.0002007,2]
[373141807,1752881459190,-182.594941,0.00020072,2]
[373141808,1752881459199,-182.594941,0.00020072,2]
[373141809,1752881459209,-1929.32133264,0.00020072,2]
[373141810,1752881459219,-151.0,0.00020077,2]
[373141811,1752881459229,-3000.0,0.0002008,2]
[373141812,1752881459238,-3000.0,0.0002009,2]
[373141813,1752881459247,-1325.0,0.00020099,2]
[373141814,1752881459257,-3000.0,0.000201,2]
[373141815,1752881459267,-1325.0,0.00020107,2]
[373141816,1752881459276,-3000.0,0.0002011,2]
[373141817,1752881459286,-3000.0,0.0002012,2]
[373141818,1752881459295,-3000.0,0.0002013,2]
[373141819,1752881459305,-3000.0,0.0002014,2]
[373141820,1752881459314,-238.215153,0.0002014,2]
[373141821,1752881459324,-5401.240923,0.0002015,2]
[373141822,1752881459333,-500.0,0.00020164,2]
[373141823,1752881459343,-5637.0,0.00020168,2]
[373141824,1752881459352,-1325.0,0.00020173,2]
[373141825,1752881459362,-500.0,0.00020186,2]
[373141826,1752881459374,-535.020357,0.00020187,2]
[373141827,1752881459383,-500.0,0.00020227,2]
[373141828,1752881459393,-1000.0,0.00020227,2]
[373141829,1752881459402,-500.0,0.00020232,2]
[373141830,1752881459412,-553.12,0.00020273,2]
[373141831,1752881459421,-460.0,0.00020273,2]
[373141832,1752881459430,-1462.88,0.00020273,2]
[373141833,1752881459439,-460.0,0.00020273,2]
[373141834,1752881459448,-460.0,0.00020273,2]
[373141835,1752881459457,-2605.37,0.00020273,2]
[373141836,1752881459466,-625.28,0.00020273,2]
[373141837,1752881459474,-460.0,0.00020273,2]
[373141838,1752881459484,-1638.8,0.00020273,2]
[373141839,1752881459494,-2619.64,0.00020273,2]
[373141840,1752881459503,-570.43413359,0.00020273,2]
[373141841,1752881459512,-1379.65,0.00020273,2]
[373141842,1752881459521,-2040.8,0.00020273,2]
[373141843,1752881459531,-762.54,0.00020273,2]
[373141844,1752881459540,-1838.47,0.00020273,2]
[373141845,1752881459549,-779.64,0.00020273,2]
[373141846,1752881459558,-509.77,0.00020273,2]
[373141847,1752881459567,-409.07,0.00020273,2]
[373141848,1752881459576,-3722.74,0.00020273,2]
[373141849,1752881459584,-728.93,0.00020273,2]
[373141850,1752881459593,-1135.32,0.00020273,2]
[373141851,1752881459602,-576.95,0.00020273,2]
[373141852,1752881459611,-479.43,0.00020273,2]
[373141853,1752881459622,-460.0,0.00020273,2]
[373141854,1752881459631,-480.07,0.00020273,2]
[373141855,1752881459639,-1372.18,0.00020273,2]
[373141856,1752881459648,-1510.53,0.00020273,2]
[373141857,1752881459657,-547.73,0.00020273,2]
[373141858,1752881459665,-766.89,0.00020273,2]
[373141859,1752881459674,-4219.87,0.00020273,2]
[373141860,1752881459683,-534.43,0.00020273,2]
[373141861,1752881459691,-4189.75,0.00020273,2]
[373141862,1752881459700,-538.0,0.00020274,2]
[373141863,1752881459709,-500.0,0.00020274,2]
[373141864,1752881459717,-700.0,0.00020282,2]
[373141865,1752881459727,-264.104677,0.000203,2]
[373141866,1752881459736,-264.104677,0.000203,2]
[373141867,1752881459744,-267.480686,0.000203,2]
[373141868,1752881459751,-267.480686,0.000203,2]
[373141869,1752881459758,-1500.0,0.00020301,2]
[373141870,1752881459764,-500.0,0.00020301,2]
[373141871,1752881459772,-502.99859168,0.00020301,2]
[373141872,1752881459779,-1929.32133264,0.00020314,3]
[373141873,1752881459786,-151.0,0.000204,2]
[373141874,1752881459794,-151.0,0.000204,2]
[373141875,1752881459801,-151.0,0.000204,2]
[373141876,1752881459808,-12610.43989422,0.000204,3]
[373141877,1752881459815,-476.25663856,0.000204,3]
[373141878,1752881459822,-214.4881157,0.000204,3]
[373141879,1752881459832,-160.0,0.000204,3]
[373141880,1752881459844,-5637.0,0.00020433,2]
[373141881,1752881459855,-438.949853,0.00020433,2]
[373141882,1752881459865,-438.949853,0.00020433,2]
[373141883,1752881459874,-1000.0,0.00020465,2]
[373141884,1752881459884,-151.0,0.00020547,2]
[373141885,1752881459894,-181.557296,0.00020547,2]
[373141886,1752881459903,-181.557296,0.00020547,2]
[373141887,1752881459913,-553.12,0.00020547,2]
[373141888,1752881459924,-460.0,0.00020547,2]
[373141889,1752881459934,-1462.88,0.00020547,2]
[373141890,1752881459943,-460.0,0.00020547,2]
[373141891,1752881460029,-500.0,0.00020547,2]
[373141892,1752881460040,-500.0,0.00020547,2]
[373141893,1752881460049,-500.0,0.00020547,2]
[373141894,1752881460059,-500.0,0.00020547,2]
[373141895,1752881460069,-460.0,0.00020547,2]
[373141896,1752881460079,-2605.37,0.00020547,2]
[373141897,1752881460089,-625.28,0.00020547,2]
[373141898,1752881460099,-460.0,0.00020547,2]
[373141899,1752881460109,-1638.8,0.00020547,2]
[373141900,1752881460120,-2619.64,0.00020547,2]
[373141901,1752881460130,-1379.65,0.00020547,2]
[373141902,1752881460140,-2040.8,0.00020547,2]
[373141903,1752881460150,-762.54,0.00020547,2]
[373141904,1752881460160,-1838.47,0.00020547,2]
[373141905,1752881460171,-779.64,0.00020547,2]
[373141906,1752881460180,-509.77,0.00020547,2]
[373141907,1752881460190,-3722.74,0.00020547,2]
[373141908,1752881460200,-728.93,0.00020547,2]
[373141909,1752881460210,-1135.32,0.00020547,2]
[373141910,1752881460220,-576.95,0.00020547,2]
[373141911,1752881460231,-479.43,0.00020547,2]
[373141912,1752881460241,-460.0,0.00020547,2]
[373141913,1752881460250,-480.07,0.00020547,2]
[373141914,1752881460260,-1372.18,0.00020547,2]
[373141915,1752881460270,-1510.53,0.00020547,2]
[373141916,1752881460279,-547.73,0.00020547,2]
[373141917,1752881460289,-766.89,0.00020547,2]
[373141918,1752881460300,-4219.87,0.00020547,2]
[373141919,1752881460310,-534.43,0.00020547,2]
[373141920,1752881460319,-4189.75,0.00020547,2]
[373141921,1752881460329,-538.0,0.00020548,2]
[373141922,1752881460339,-500.0,0.00020548,2]
[373141923,1752881460349,-151.0,0.00020548,2]
[373141924,1752881460358,-182.594941,0.00020549,2]
[373141925,1752881460369,-182.594941,0.00020549,2]
[373141926,1752881460379,-151.0,0.0002055,2]
[373141927,1752881460389,-151.0,0.0002055,2]
[373141928,1752881460399,-1929.32133264,0.00020555,3]
[373141929,1752881460408,-660.0,0.00020572,2]
[373141930,1752881460418,-159.7855054,0.00020634,2]
[373141931,1752881460427,-159.7855054,0.00020634,2]
[373141932,1752881460436,-577.0505339,0.00020634,2]
[373141933,1752881460446,-178.0805666,0.00020634,2]
[373141934,1752881460455,-159.7855054,0.00020634,2]
[373141935,1752881460466,-355.7485,0.00020634,2]
[373141936,1752881460475,-178.0805666,0.00020634,2]
[373141937,1752881460484,-159.7855054,0.00020634,2]
[373141938,1752881460493,-159.7855054,0.00020634,2]
[373141939,1752881460503,-178.0805666,0.00020634,2]
[373141940,1752881460512,-577.0505339,0.00020634,2]
[373141941,1752881460522,-178.0805666,0.00020634,2]
[373141942,1752881460532,-319.516989,0.00020634,2]
[373141943,1752881460542,-577.0505339,0.00020634,2]
[373141944,1752881460551,-178.0805666,0.00020634,2]
[373141945,1752881460561,-319.516989,0.00020634,2]
[373141946,1752881460571,-577.0505339,0.00020634,2]
[373141947,1752881460580,-178.0805666,0.00020634,2]
[373141948,1752881460590,-177.726881,0.00020634,2]
[373141949,1752881460599,-577.0505339,0.00020634,2]
[373141950,1752881460609,-159.1372438,0.00020634,2]
[373141951,1752881460620,-500.0,0.0002065,2]
[373141952,1752881460630,-221.653902,0.00020657,2]
[373141953,1752881460640,-2870.25870827,0.0002072,2]
[373141954,1752881460650,-55994.26556606,0.00020739,2]
[373141955,1752881460669,-301.40038281,0.00020739,2]
[373141956,1752881512802,150.0,0.00014648,2]
[373141961,1752881814696,481.518321,0.00013699,2]
[373141963,1752881939167,1563.7205604,0.00015575,2]
[373141964,1752881939200,10000.0,0.00015575,2]